fUSD/lending_fUSD_20251210
["ID","MTS","AMOUNT","RATE_DAILY","PERIOD"]
[398042935,1765333840244,-500.0,0.00015998,2]
[398042936,1765333840253,-500.0,0.00015998,2]
[398042937,1765333840264,-199.55900663,0.00015998,2]
[398042938,1765333840273,-500.0,0.00015998,2]
[398042939,1765333840282,-500.0,0.00015998,2]
[398042941,1765333840291,-572.56867783,0.00015998,2]
[398042942,1765333840300,-500.0,0.00015998,2]
[398042943,1765333840310,-500.0,0.00015998,2]
[398042944,1765333840319,-500.0,0.00015998,2]
[398042946,1765333840328,-500.0,0.00015998,2]
[398042947,1765333840338,-500.0,0.00015998,2]
[398042948,1765333840347,-500.0,0.00015998,2]
[398042949,1765333840356,-400.0,0.00015998,2]
[398042950,1765333840366,-500.0,0.00015998,2]
[398042951,1765333840375,-500.0,0.00015998,2]
[398042952,1765333840385,-500.0,0.00015998,2]
[398042953,1765333840394,-500.0,0.00015998,2]
[398042954,1765333840404,-500.0,0.00015998,2]
[398042955,1765333840413,-500.0,0.00015998,2]
[398042956,1765333840423,-500.0,0.00015998,2]
[398042957,1765333840431,-500.0,0.00015998,2]
[398042958,1765333840440,-500.0,0.00015998,2]
[398042959,1765333840450,-500.0,0.00015998,2]
[398042960,1765333840459,-500.0,0.00015998,2]
[398042961,1765333840469,-622.24,0.00015998,2]
[398042962,1765333840478,-1806.89,0.00015998,2]
[398042963,1765333840487,-500.0,0.00015998,2]
[398042964,1765333840497,-500.0,0.00015998,2]
[398042965,1765333840506,-500.0,0.00015998,2]
[398042966,1765333840516,-712.31,0.00015998,2]
[398042967,1765333840525,-500.0,0.00015998,2]
[398042968,1765333840535,-500.0,0.00015998,2]
[398042969,1765333840544,-500.0,0.00015998,2]
[398042970,1765333840554,-500.0,0.00015998,2]
[398042971,1765333840563,-500.0,0.00015998,2]
[398042972,1765333840573,-500.0,0.00015998,2]
[398042973,1765333840582,-500.0,0.00015998,2]
[398042974,1765333840592,-500.0,0.00015998,2]
[398042975,1765333840601,-500.0,0.00015998,2]
[398042976,1765333840611,-500.0,0.00015998,2]
[398042977,1765333840620,-501.62769746,0.00015998,2]
[398042978,1765333840629,-500.0,0.00015998,2]
[398042979,1765333840639,-500.0,0.00015998,2]
[398042980,1765333840648,-500.0,0.00015998,2]
[398042981,1765333840657,-500.0,0.00015998,2]
[398042982,1765333840668,-500.0,0.00015998,2]
[398042983,1765333840677,-500.0,0.00015998,2]
[398042984,1765333840687,-500.0,0.00015998,2]
[398042985,1765333840696,-500.0,0.00015998,2]
[398042986,1765333840706,-500.0,0.00015998,2]
[398042987,1765333840716,-500.0,0.00015998,2]
[398042988,1765333840726,-500.0,0.00015998,2]
[398042989,1765333840735,-500.0,0.00015998,2]
[398042990,1765333840745,-500.0,0.00015998,2]
[398042991,1765333840755,-500.0,0.00015998,2]
[398042992,1765333840764,-500.0,0.00015998,2]
[398042993,1765333840774,-500.0,0.00015998,2]
[398042994,1765333840783,-644.34365783,0.00015998,2]
[398042995,1765333840793,-500.0,0.00015998,2]
[398042996,1765333840802,-500.0,0.00015998,2]
[398042997,1765333840812,-500.0,0.00015998,2]
[398042998,1765333840821,-500.0,0.00015998,2]
[398042999,1765333840832,-500.0,0.00015998,2]
[398043000,1765333840841,-500.0,0.00015998,2]
[398043001,1765333840851,-500.0,0.00015998,2]
[398043002,1765333840860,-616.21,0.00015998,2]
[398043003,1765333840870,-839.84,0.00015998,2]
[398043004,1765333840879,-500.0,0.00015998,2]
[398043005,1765333840888,-457.46497538,0.00015998,2]
[398043006,1765333840897,-742.26,0.00015998,2]
[398043007,1765333840906,-500.0,0.00015998,2]
[398043008,1765333840916,-513.53,0.00015998,2]
[398043009,1765333840926,-500.0,0.00015998,2]
[398043010,1765333840935,-776.77,0.00015998,2]
[398043011,1765333840945,-1061.66,0.00015998,2]
[398043012,1765333840955,-501.12396714,0.00015998,2]
[398043013,1765333840965,-538.27,0.00015998,2]
[398043014,1765333840974,-1325.47,0.00015998,2]
[398043015,1765333840983,-503.52963996,0.00015998,2]
[398043016,1765333840995,-500.0,0.00015998,2]
[398043017,1765333841004,-892.82,0.00015998,2]
[398043018,1765333841014,-500.0,0.00015998,2]
[398043019,1765333841023,-577.23,0.00015998,2]
[398043020,1765333841032,-500.0,0.00015998,2]
[398043021,1765333841042,-1086.09,0.00015998,2]
[398043022,1765333841052,-841.07,0.00015998,2]
[398043023,1765333841061,-500.0,0.00015998,2]
[398043024,1765333841073,-561.72,0.00015998,2]
[398043025,1765333841083,-924.22,0.00015998,2]
[398043026,1765333841093,-595.45781511,0.00015998,2]
[398043027,1765333841102,-501.37599945,0.00015998,2]
[398043028,1765333841111,-500.0,0.00015998,2]
[398043029,1765333841120,-877.38,0.00015998,2]
[398043030,1765333841129,-620.12533526,0.00015998,2]
[398043031,1765333841139,-326.92068322,0.00015998,2]
[398043032,1765333841148,-658.59,0.00015998,2]
[398043033,1765333841157,-500.0,0.00015998,2]
[398043034,1765333841167,-500.48337568,0.00015998,2]
[398043035,1765333841176,-500.0,0.00015998,2]
[398043036,1765333841186,-939.2,0.00015998,2]
[398043037,1765333841195,-500.0,0.00015998,2]
[398043038,1765333841205,-830.02,0.00015998,2]
[398043039,1765333841214,-500.0,0.00015998,2]
[398043040,1765333841223,-908.14,0.00015998,2]
[398043041,1765333841234,-1209.02,0.00015998,2]
[398043042,1765333841244,-2556.86,0.00015998,2]
[398043043,1765333841254,-500.0,0.00015998,2]
[398043044,1765333841263,-500.0,0.00015998,2]
[398043045,1765333841274,-500.0,0.00015998,2]
[398043046,1765333841284,-501.27,0.00015998,2]
[398043047,1765333841293,-500.0,0.00015998,2]
[398043048,1765333841302,-514.09,0.00015998,2]
[398043049,1765333841312,-500.0,0.00015998,2]
[398043050,1765333841321,-545.31134676,0.00015998,2]
[398043051,1765333841331,-511.69592661,0.00015998,2]
[398043052,1765333841340,-500.0,0.00015998,2]
[398043053,1765333841350,-531.97,0.00015998,2]
[398043054,1765333841359,-500.0,0.00015998,2]
[398043055,1765333841368,-500.0,0.00015998,2]
[398043056,1765333841378,-500.0,0.00015998,2]
[398043057,1765333841388,-544.52,0.00015998,2]
[398043058,1765333841398,-500.0,0.00015998,2]
[398043059,1765333841408,-500.0,0.00015998,2]
[398043060,1765333841417,-500.0,0.00015998,2]
[398043061,1765333841427,-500.0,0.00015998,2]
[398043062,1765333841437,-500.0,0.00015998,2]
[398043063,1765333841447,-626.57,0.00015998,2]
[398043064,1765333841456,-937.1,0.00015998,2]
[398043065,1765333841465,-500.0,0.00015998,2]
[398043066,1765333841475,-500.0,0.00015998,2]
[398043067,1765333841485,-500.0,0.00015998,2]
[398043068,1765333841495,-500.0,0.00015998,2]
[398043069,1765333841504,-500.0,0.00015998,2]
[398043070,1765333841513,-500.0,0.00015998,2]
[398043071,1765333841523,-500.0,0.00015998,2]
[398043072,1765333841533,-500.0,0.00015998,2]
[398043073,1765333841542,-500.0,0.00015998,2]
[398043074,1765333841552,-500.0,0.00015998,2]
[398043075,1765333841562,-500.0,0.00015998,2]
[398043076,1765333841571,-3038.93,0.00015998,2]
[398043077,1765333841581,-513.6,0.00015998,2]
[398043078,1765333841590,-500.0,0.00015998,2]
[398043079,1765333841600,-500.0,0.00015999,2]
[398043080,1765333841609,-526.07,0.00015999,2]
[398043081,1765333841620,-500.0,0.00015999,2]
[398043082,1765333841629,-500.0,0.00015999,2]
[398043083,1765333841638,-500.0,0.00015999,2]
[398043084,1765333841647,-508.77240063,0.00015999,2]
[398043085,1765333841657,-500.0,0.00015999,2]
[398043086,1765333841666,-500.0,0.00015999,2]
[398043087,1765333841676,-505.88551923,0.00015999,2]
[398043088,1765333841686,-500.0,0.00015999,2]
[398043089,1765333841696,-500.0,0.00015999,2]
[398043090,1765333841705,-500.0,0.00015999,2]
[398043091,1765333841714,-508.13,0.00015999,2]
[398043092,1765333841724,-500.0,0.00015999,2]
[398043093,1765333841733,-500.0,0.00015999,2]
[398043094,1765333841743,-500.0,0.00015999,2]
[398043095,1765333841752,-500.0,0.00015999,2]
[398043096,1765333841762,-500.0,0.00015999,2]
[398043097,1765333841772,-500.0,0.00015999,2]
[398043098,1765333841781,-500.0,0.00015999,2]
[398043099,1765333841790,-511.47846494,0.00015999,2]
[398043100,1765333841799,-500.0,0.00015999,2]
[398043101,1765333841809,-500.0,0.00015999,2]
[398043102,1765333841818,-500.0,0.00015999,2]
[398043103,1765333841827,-500.0,0.00015999,2]
[398043104,1765333841837,-500.0,0.00015999,2]
[398043105,1765333841848,-500.0,0.00015999,2]
[398043106,1765333841858,-500.0,0.00015999,2]
[398043107,1765333841870,-531.99,0.00015999,2]
[398043108,1765333841880,-512.83922942,0.00015999,2]
[398043109,1765333841890,-500.0,0.00015999,2]
[398043110,1765333841900,-500.0,0.00015999,2]
[398043111,1765333841910,-500.0,0.00015999,2]
[398043112,1765333841919,-561.74,0.00015999,2]
[398043113,1765333841930,-500.0,0.00015999,2]
[398043114,1765333841940,-500.0,0.00015999,2]
[398043115,1765333841949,-500.0,0.00015999,2]
[398043116,1765333841959,-500.0,0.00015999,2]
[398043117,1765333841969,-500.0,0.00015999,2]
[398043118,1765333841979,-500.0,0.00015999,2]
[398043119,1765333841989,-500.0,0.00015999,2]
[398043120,1765333842001,-500.0,0.00015999,2]
[398043121,1765333842011,-500.0,0.00015999,2]
[398043122,1765333842021,-500.0,0.00015999,2]
[398043123,1765333842030,-500.0,0.00015999,2]
[398043124,1765333842039,-500.0,0.00015999,2]
[398043125,1765333842049,-225.75884039,0.00015999,2]
[398043126,1765333842059,-500.0,0.00015999,2]
[398043127,1765333842069,-500.0,0.00015999,2]
[398043128,1765333842078,-500.0,0.00015999,2]
[398043129,1765333842088,-500.0,0.00015999,2]
[398043130,1765333842097,-502.92340144,0.00015999,2]
[398043131,1765333842107,-500.0,0.00015999,2]
[398043132,1765333842117,-500.0,0.00015999,2]
[398043133,1765333842126,-500.0,0.00015999,2]
[398043134,1765333842136,-500.0,0.00015999,2]
[398043135,1765333842145,-500.0,0.00015999,2]
[398043137,1765333842373,-500.0,0.00015999,2]
[398043138,1765333842383,-500.0,0.00015999,2]
[398043139,1765333842393,-500.0,0.00015999,2]
[398043140,1765333842402,-503.71470121,0.00015999,2]
[398043141,1765333842411,-500.0,0.00015999,2]
[398043142,1765333842421,-500.0,0.00015999,2]
[398043143,1765333842430,-477.08062673,0.00015999,2]
[398043144,1765333842440,-500.0,0.00015999,2]
[398043145,1765333842449,-500.0,0.00015999,2]
[398043146,1765333842459,-500.0,0.00015999,2]
[398043147,1765333842468,-500.0,0.00015999,2]
[398043148,1765333842478,-500.0,0.00015999,2]
[398043149,1765333842486,-500.0,0.00015999,2]
[398043150,1765333842496,-778.87,0.00015999,2]
[398043151,1765333842505,-500.0,0.00015999,2]
[398043152,1765333842514,-572.03,0.00015999,2]
[398043153,1765333842524,-565.60410274,0.00015999,2]
[398043154,1765333842533,-500.0,0.00015999,2]
[398043155,1765333842543,-500.0,0.00015999,2]
[398043156,1765333842552,-500.0,0.00015999,2]
[398043157,1765333842562,-500.0,0.00015999,2]
[398043158,1765333842571,-500.0,0.00015999,2]
[398043159,1765333842580,-500.0,0.00015999,2]
[398043160,1765333842590,-500.0,0.00015999,2]
[398043161,1765333842599,-500.0,0.00015999,2]
[398043162,1765333842608,-503.18608497,0.00015999,2]
[398043163,1765333842618,-723.33,0.00015999,2]
[398043164,1765333842628,-500.0,0.00015999,2]
[398043165,1765333842637,-1000.0,0.00015999,2]
[398043166,1765333842647,-552.08,0.00015999,2]
[398043167,1765333842657,-500.0,0.00015999,2]
[398043168,1765333842666,-500.0,0.00015999,2]
[398043169,1765333842675,-596.04634561,0.00015999,2]
[398043170,1765333842684,-500.0,0.00015999,2]
[398043171,1765333842694,-500.0,0.00015999,2]
[398043172,1765333842703,-500.0,0.00015999,2]
[398043173,1765333842712,-500.0,0.00015999,2]
[398043174,1765333842722,-757.26,0.00015999,2]
[398043175,1765333842731,-500.0,0.00015999,2]
[398043176,1765333842741,-500.0,0.00015999,2]
[398043177,1765333842750,-500.0,0.00015999,2]
[398043178,1765333842759,-500.0,0.00015999,2]
[398043179,1765333842768,-507.49718427,0.00015999,2]
[398043180,1765333842778,-500.0,0.00015999,2]
[398043181,1765333842788,-500.0,0.00015999,2]
[398043182,1765333842798,-500.0,0.00015999,2]
[398043183,1765333842807,-500.0,0.00015999,2]
[398043184,1765333842818,-500.0,0.00015999,2]
[398043185,1765333842828,-526.82,0.00015999,2]
[398043186,1765333842837,-334.32906232,0.00015999,2]
[398043187,1765333842848,-282.92015657,0.00015999,2]
[398043188,1765333842857,-545.37,0.00015999,2]
[398043189,1765333842867,-500.0,0.00015999,2]
[398043190,1765333842876,-500.0,0.00015999,2]
[398043191,1765333842886,-667.51,0.00015999,2]
[398043192,1765333842896,-500.0,0.00015999,2]
[398043193,1765333842905,-500.0,0.00015999,2]
[398043194,1765333842914,-504.21466429,0.00015999,2]
[398043195,1765333842923,-500.0,0.00015999,2]
[398043196,1765333842933,-500.0,0.00015999,2]
[398043197,1765333842942,-500.0,0.00015999,2]
[398043198,1765333842951,-500.0,0.00015999,2]
[398043199,1765333842960,-500.0,0.00015999,2]
[398043200,1765333842969,-585.34,0.00015999,2]
[398043201,1765333842978,-500.0,0.00015999,2]
[398043202,1765333842988,-500.0,0.00015999,2]
[398043203,1765333843002,-500.0,0.00015999,2]
[398043204,1765333843011,-588.02,0.00015999,2]
[398043205,1765333843020,-500.0,0.00015999,2]
[398043206,1765333843030,-500.0,0.00015999,2]
[398043207,1765333843042,-500.0,0.00015999,2]
[398043209,1765333843051,-500.0,0.00015999,2]
[398043211,1765333843060,-500.0,0.00015999,2]
[398043212,1765333843072,-500.0,0.00015999,2]
[398043213,1765333843081,-500.0,0.00015999,2]
[398043214,1765333843091,-500.0,0.00015999,2]
[398043215,1765333843100,-500.0,0.00015999,2]
[398043216,1765333843110,-544.37,0.00015999,2]
[398043217,1765333843120,-508.04164913,0.00015999,2]
[398043218,1765333843130,-500.0,0.00015999,2]
[398043219,1765333843139,-504.12097961,0.00015999,2]
[398043220,1765333843149,-509.69188851,0.00015999,2]
[398043221,1765333843158,-512.93,0.00015999,2]
[398043222,1765333843175,-500.0,0.00015999,2]
[398043223,1765333843186,-500.0,0.00015999,2]
[398043224,1765333843195,-500.0,0.00015999,2]
[398043225,1765333843204,-500.0,0.00015999,2]
[398043226,1765333843212,-500.0,0.00015999,2]
[398043227,1765333843223,-500.0,0.00015999,2]
[398043228,1765333843232,-500.0,0.00015999,2]
[398043229,1765333843249,-500.0,0.00015999,2]
[398043230,1765333843259,-538.76,0.00015999,2]
[398043231,1765333843268,-500.0,0.00015999,2]
[398043232,1765333843278,-500.0,0.00015999,2]
[398043233,1765333843287,-500.0,0.00015999,2]
[398043234,1765333843296,-500.0,0.00015999,2]
[398043235,1765333843307,-500.0,0.00015999,2]
[398043236,1765333843317,-500.0,0.00015999,2]
[398043237,1765333843327,-500.0,0.00015999,2]
[398043238,1765333843337,-570.9646165,0.00015999,2]
[398043239,1765333843347,-500.0,0.00015999,2]
[398043240,1765333843357,-500.0,0.00015999,2]
[398043241,1765333843367,-679.16,0.00015999,2]
[398043242,1765333843376,-500.0,0.00015999,2]
[398043243,1765333843386,-500.0,0.00015999,2]
[398043244,1765333843395,-500.0,0.00015999,2]
[398043245,1765333843405,-504.77489294,0.00015999,2]
[398043246,1765333843415,-750.37,0.00015999,2]
[398043247,1765333843424,-682.94,0.00015999,2]
[398043248,1765333843434,-500.0,0.00015999,2]
[398043249,1765333843443,-500.0,0.00015999,2]
[398043250,1765333843452,-547.45,0.00015999,2]
[398043251,1765333843461,-500.0,0.00015999,2]
[398043252,1765333843471,-500.0,0.00015999,2]
[398043253,1765333843480,-500.0,0.00015999,2]
[398043254,1765333843490,-614.29,0.00015999,2]
[398043255,1765333843499,-207.68380987,0.00015999,2]
[398043256,1765333843508,-500.0,0.00015999,2]
[398043257,1765333843517,-504.06184975,0.00015999,2]
[398043258,1765333843527,-500.0,0.00015999,2]
[398043259,1765333843536,-500.0,0.00015999,2]
[398043260,1765333843544,-500.0,0.00015999,2]
[398043261,1765333843553,-500.0,0.00015999,2]
[398043262,1765333843563,-500.0,0.00015999,2]
[398043263,1765333843572,-471.80975901,0.00015999,2]
[398043264,1765333843581,-500.0,0.00015999,2]
[398043265,1765333843590,-719.37,0.00015999,2]
[398043266,1765333843599,-563.95,0.00015999,2]
[398043267,1765333843608,-506.85024119,0.00015999,2]
[398043268,1765333843618,-500.0,0.00015999,2]
[398043269,1765333843627,-417.35201436,0.00015999,2]
[398043270,1765333843636,-485.08989816,0.00015999,2]
[398043271,1765333843645,-243.53809813,0.00015999,2]
[398043272,1765333843655,-500.0,0.00015999,2]
[398043273,1765333843663,-373.77837332,0.00015999,2]
[398043274,1765333843672,-500.0,0.00015999,2]
[398043275,1765333843681,-500.0,0.00015999,2]
[398043276,1765333843690,-500.0,0.00015999,2]
[398043277,1765333843699,-500.0,0.00015999,2]
[398043278,1765333843708,-500.0,0.00015999,2]
[398043279,1765333843717,-500.0,0.00015999,2]
[398043280,1765333843726,-500.0,0.00015999,2]
[398043281,1765333843735,-500.0,0.00015999,2]
[398043282,1765333843745,-500.0,0.00015999,2]
[398043283,1765333843754,-501.96860597,0.00015999,2]
[398043284,1765333843763,-778.51,0.00015999,2]
[398043285,1765333843772,-500.0,0.00015999,2]
[398043286,1765333843781,-500.0,0.00015999,2]
[398043287,1765333843791,-500.0,0.00015999,2]
[398043288,1765333843800,-500.0,0.00015999,2]
[398043289,1765333843810,-500.0,0.00015999,2]
[398043290,1765333843819,-500.0,0.00015999,2]
[398043291,1765333843828,-500.0,0.00015999,2]
[398043292,1765333843837,-500.0,0.00015999,2]
[398043293,1765333843846,-500.0,0.00015999,2]
[398043294,1765333843856,-500.0,0.00015999,2]
[398043295,1765333843865,-500.0,0.00015999,2]
[398043296,1765333843875,-500.0,0.00015999,2]
[398043297,1765333843884,-500.0,0.00015999,2]
[398043298,1765333843893,-500.0,0.00015999,2]
[398043299,1765333843903,-500.0,0.00015999,2]
[398043300,1765333843913,-500.0,0.00015999,2]
[398043301,1765333843922,-500.0,0.00015999,2]
[398043302,1765333843932,-500.0,0.00015999,2]
[398043303,1765333843942,-500.0,0.00015999,2]
[398043304,1765333843951,-500.0,0.00015999,2]
[398043305,1765333843960,-596.18845167,0.00015999,2]
[398043306,1765333843970,-500.0,0.00015999,2]
[398043307,1765333843979,-640.09,0.00015999,2]
[398043308,1765333843989,-500.0,0.00015999,2]
[398043309,1765333844002,-500.0,0.00015999,2]
[398043310,1765333844011,-158.93757324,0.00015999,2]
[398043311,1765333844022,-500.0,0.00015999,2]
[398043312,1765333844031,-674.1,0.00015999,2]
[398043313,1765333844041,-500.0,0.00015999,2]
[398043314,1765333844050,-890.31,0.00015999,2]
[398043315,1765333844059,-500.0,0.00015999,2]
[398043316,1765333844068,-500.0,0.00015999,2]
[398043317,1765333844078,-290.17464263,0.00015999,2]
[398043318,1765333844087,-500.0,0.00015999,2]
[398043319,1765333844096,-505.97993374,0.00015999,2]
[398043320,1765333844105,-723.93,0.00015999,2]
[398043321,1765333844115,-500.0,0.00015999,2]
[398043322,1765333844123,-500.0,0.00015999,2]
[398043323,1765333844133,-551.89,0.00015999,2]
[398043324,1765333844142,-500.0,0.00015999,2]
[398043325,1765333844151,-500.0,0.00015999,2]
[398043326,1765333844160,-755.72,0.00015999,2]
[398043327,1765333844169,-342.04387377,0.00015999,2]
[398043328,1765333844179,-785.5,0.00015999,2]
[398043329,1765333844188,-504.16100079,0.00015999,2]
[398043330,1765333844198,-500.0,0.00015999,2]
[398043331,1765333844207,-500.0,0.00015999,2]
[398043332,1765333844216,-500.0,0.00015999,2]
[398043333,1765333844225,-507.91617787,0.00015999,2]
[398043334,1765333844235,-600.16,0.00015999,2]
[398043335,1765333844245,-500.0,0.00015999,2]
[398043336,1765333844254,-500.0,0.00015999,2]
[398043337,1765333844263,-500.0,0.00015999,2]
[398043338,1765333844272,-500.0,0.00015999,2]
[398043339,1765333844281,-543.42,0.00015999,2]
[398043340,1765333844290,-500.0,0.00015999,2]
[398043341,1765333844299,-504.56952672,0.00015999,2]
[398043342,1765333844308,-500.0,0.00015999,2]
[398043343,1765333844318,-500.0,0.00015999,2]
[398043344,1765333844327,-500.0,0.00015999,2]
[398043345,1765333844336,-500.0,0.00015999,2]
[398043346,1765333844346,-684.21,0.00015999,2]
[398043347,1765333844355,-500.0,0.00015999,2]
[398043348,1765333844364,-500.0,0.00015999,2]
[398043349,1765333844375,-507.54772825,0.00015999,2]
[398043350,1765333844385,-500.0,0.00015999,2]
[398043351,1765333844395,-475.67717401,0.00015999,2]
[398043352,1765333844405,-500.0,0.00015999,2]
[398043353,1765333844414,-500.0,0.00015999,2]
[398043354,1765333844422,-500.0,0.00015999,2]
[398043355,1765333844431,-500.0,0.00015999,2]
[398043356,1765333844440,-500.0,0.00015999,2]
[398043357,1765333844449,-720.6,0.00015999,2]
[398043358,1765333844458,-500.0,0.00015999,2]
[398043359,1765333844466,-1041.64,0.00015999,2]
[398043360,1765333844475,-151.0,0.00015999,2]
[398043361,1765333844485,-151.0,0.00015999,2]
[398043362,1765333844494,-152.741829,0.00015999,2]
[398043363,1765333844503,-500.0,0.00015999,2]
[398043364,1765333844512,-500.0,0.00015999,2]
[398043365,1765333844521,-500.0,0.00015999,2]
[398043366,1765333844531,-500.0,0.00015999,2]
[398043367,1765333844539,-500.0,0.00015999,2]
[398043368,1765333844548,-587.2346556,0.00015999,2]
[398043369,1765333844557,-500.0,0.00015999,2]
[398043370,1765333844566,-500.0,0.00015999,2]
[398043371,1765333844575,-500.0,0.00015999,2]
[398043372,1765333844583,-162.28809427,0.00015999,2]
[398043373,1765333844593,-500.0,0.00015999,2]
[398043374,1765333844602,-500.0,0.00015999,2]
[398043375,1765333844611,-334.30881612,0.00015999,2]
[398043376,1765333844620,-500.0,0.00015999,2]
[398043377,1765333844628,-506.5937603,0.00015999,2]
[398043378,1765333844637,-500.0,0.00015999,2]
[398043379,1765333844646,-500.0,0.00015999,2]
[398043380,1765333844654,-500.0,0.00015999,2]
[398043381,1765333844663,-500.0,0.00015999,2]
[398043382,1765333844671,-500.0,0.00015999,2]
[398043383,1765333844680,-500.0,0.00015999,2]
[398043384,1765333844688,-515.44,0.00015999,2]
[398043385,1765333844697,-510.07,0.00015999,2]
[398043386,1765333844706,-500.0,0.00015999,2]
[398043387,1765333844715,-500.0,0.00015999,2]
[398043388,1765333844723,-500.0,0.00015999,2]
[398043389,1765333844732,-500.0,0.00015999,2]
[398043390,1765333844740,-500.0,0.00015999,2]
[398043391,1765333844749,-500.0,0.00015999,2]
[398043392,1765333844758,-500.0,0.00015999,2]
[398043393,1765333844767,-501.89932113,0.00015999,2]
[398043394,1765333844776,-500.0,0.00015999,2]
[398043395,1765333844785,-500.0,0.00015999,2]
[398043396,1765333844793,-579.04471326,0.00015999,2]
[398043397,1765333844803,-547.74,0.00015999,2]
[398043398,1765333844813,-506.1941338,0.00015999,2]
[398043399,1765333844822,-500.0,0.00015999,2]
[398043400,1765333844831,-500.0,0.00015999,2]
[398043401,1765333844841,-500.0,0.00015999,2]
[398043402,1765333844850,-394.92372694,0.00015999,2]
[398043403,1765333844860,-720.62,0.00015999,2]
[398043404,1765333844869,-500.0,0.00015999,2]
[398043405,1765333844878,-500.0,0.00015999,2]
[398043406,1765333844887,-500.0,0.00015999,2]
[398043407,1765333844896,-554.53,0.00015999,2]
[398043408,1765333844905,-500.0,0.00015999,2]
[398043409,1765333844914,-500.0,0.00015999,2]
[398043410,1765333844922,-500.0,0.00015999,2]
[398043411,1765333844931,-500.0,0.00015999,2]
[398043412,1765333844940,-500.0,0.00015999,2]
[398043413,1765333844949,-500.0,0.00015999,2]
[398043414,1765333844958,-506.23206351,0.00015999,2]
[398043415,1765333844967,-500.0,0.00015999,2]
[398043416,1765333844976,-616.9,0.00015999,2]
[398043417,1765333844985,-500.0,0.00015999,2]
[398043418,1765333844997,-500.0,0.00015999,2]
[398043419,1765333845007,-500.0,0.00015999,2]
[398043420,1765333845017,-500.0,0.00015999,2]
[398043421,1765333845027,-500.0,0.00015999,2]
[398043422,1765333845038,-647.17063683,0.00015999,2]
[398043423,1765333845047,-500.0,0.00015999,2]
[398043424,1765333845056,-503.20378236,0.00015999,2]
[398043425,1765333845066,-500.0,0.00015999,2]
[398043426,1765333845075,-500.0,0.00015999,2]
[398043427,1765333845084,-501.96904416,0.00015999,2]
[398043428,1765333845094,-500.0,0.00015999,2]
[398043429,1765333845103,-500.0,0.00015999,2]
[398043430,1765333845112,-523.19,0.00015999,2]
[398043431,1765333845121,-500.0,0.00015999,2]
[398043432,1765333845130,-500.0,0.00015999,2]
[398043433,1765333845139,-500.0,0.00015999,2]
[398043434,1765333845149,-500.0,0.00015999,2]
[398043435,1765333845158,-640.85,0.00015999,2]
[398043436,1765333845168,-512.84269054,0.00015999,2]
[398043437,1765333845177,-569.186459,0.00015999,2]
[398043438,1765333845186,-508.44,0.00015999,2]
[398043439,1765333845195,-500.0,0.00015999,2]